bitfinex/quotes_SOLUSD_20250728
["timestamp","ask_amount","ask_price","bid_price","bid_amount"]
[1753701916384,0.03,191.7,191.69,6.17419746]
[1753701917991,0.03,191.7,191.69,11.60095368]
[1753701918288,0.03,191.7,191.69,28.17563765]
[1753701919976,0.71,191.7,191.69,22.95888143]
[1753701920382,0.03,191.7,191.69,22.95888143]
[1753701920693,0.03,191.7,191.69,28.17563765]
[1753701923666,0.03,191.7,191.69,116.47563765]
[1753701923889,0.71,191.7,191.69,116.47563765]
[1753701924075,0.71,191.7,191.69,111.25888143]
[1753701924394,0.71,191.7,191.69,124.62]
[1753701924603,0.71,191.7,191.69,88.3]
[1753701928708,0.03,191.7,191.69,130.50987432]
[1753701929004,0.03,191.7,191.69,124.62]
[1753701929005,0.71,191.7,191.69,124.62]
[1753701929589,0.71,191.7,191.68,36.38]
[1753701929793,0.68,191.69,191.68,36.38]
[1753701932109,0.68,191.69,191.68,0.06]
[1753701933099,4.58822465,191.69,191.68,0.06]
[1753701933322,0.68,191.69,191.68,0.06]
[1753701933820,4.58816499,191.69,191.68,0.06]
[1753701934010,0.68,191.69,191.68,0.06]
[1753701934326,4.58804249,191.69,191.68,0.06]
[1753701935132,0.68,191.69,191.68,0.06]
[1753701935300,4.58822874,191.69,191.68,0.06]
[1753701937598,3.90822874,191.69,191.68,0.06]
[1753701937840,3.90822874,191.69,191.68,5.94987432]
[1753701939433,3.90822874,191.69,191.68,11.1669027]
[1753701940036,0.03,191.7,191.68,11.1669027]
[1753701940328,3.90761928,191.69,191.68,11.1669027]
[1753701940650,4.58761928,191.69,191.68,0.06]
[1753701942813,4.61761928,191.69,191.68,0.06]
[1753701944508,4.61750897,191.69,191.68,0.06]
[1753701952944,3.93750897,191.69,191.68,0.06]
[1753701953651,3.93750897,191.69,191.68,5.94987432]
[1753701954146,4.61750897,191.69,191.68,0.06]
[1753701955444,3.93750897,191.69,191.68,0.06]
[1753701956458,4.61750897,191.69,191.68,0.06]
[1753701957757,4.61994667,191.69,191.68,0.06]
[1753701958058,3.93994667,191.69,191.68,0.06]
[1753701962557,0.03,191.69,191.68,4.11144158]
[1753701962762,0.03,191.69,191.68,9.32846996]
[1753701964542,0.03,191.69,191.68,114.93485676]
[1753701964748,0.03,191.69,191.68,114.41315393]
[1753701964954,0.03,191.69,191.68,114.62315393]
[1753701966270,0.03,191.7,191.69,17.06900711]
[1753701966456,0.03,191.7,191.69,57.88780117]
[1753701966857,0.03,191.7,191.69,63.10455739]
[1753701967169,0.03,191.71,191.7,0.28432314]
[1753701967374,1e-08,191.73,191.71,23.52880711]
[1753701967677,1e-08,191.73,191.72,57.88771954]
[1753701968746,1e-08,191.73,191.72,65.21550131]
[1753701970379,1e-08,191.73,191.72,153.51550131]
[1753701970579,1e-08,191.73,191.72,152.99390732]
[1753701973566,1e-08,191.73,191.72,116.67390732]
[1753701973766,1e-08,191.73,191.72,152.99390732]
[1753701974464,1e-08,191.73,191.72,116.67390732]
[1753701974784,1e-08,191.73,191.72,152.99390732]
[1753701975286,1e-08,191.73,191.72,116.67390732]
[1753701975491,1e-08,191.73,191.72,152.99390732]
[1753701976489,1e-08,191.73,191.72,152.97390732]
[1753701976685,1e-08,191.73,191.72,116.67390732]
[1753701976884,1e-08,191.73,191.72,152.97390732]
[1753701978494,0.03,191.75,191.74,18.28788397]
[1753701978667,0.03,191.79,191.78,0.28432314]
[1753701978868,0.03,191.79,191.78,65.64835851]
[1753701979091,0.03,191.79,191.78,65.85835851]
[1753701979295,1e-08,191.8,191.79,18.65790711]
[1753701979597,0.03,191.83,191.8,17.06900711]
[1753701979893,0.03,191.83,191.8,65.85830414]
[1753701980072,0.03,191.83,191.8,68.41467095]
[1753701981086,0.03,191.83,191.8,73.62843528]
[1753701981284,0.03,191.83,191.82,43.06900711]
[1753701981596,0.66,191.89,191.83,16.78468397]
[1753701981892,0.86,191.87,191.83,22.94796741]
[1753701982895,0.2,191.87,191.83,22.94796741]
[1753701983194,0.2,191.87,191.83,28.37091637]
[1753701983370,0.2,191.87,191.86,42.78468397]
[1753701983573,0.2,191.87,191.86,173.5479674]
[1753701984391,0.2,191.87,191.86,178.76010124]
[1753701985089,0.86,191.87,191.86,178.76010124]
[1753701986990,0.2,191.87,191.86,178.76010124]
[1753701987383,0.86,191.87,191.86,178.76010124]
[1753701987611,0.86,191.87,191.86,142.46010124]
[1753701987793,0.86,191.87,191.86,156.47896029]
[1753701987998,0.86,191.87,191.86,161.97541727]
[1753701988197,0.86,191.87,191.86,161.69109413]
[1753701988390,0.86,191.87,191.86,161.97541727]
[1753701988709,0.86,191.87,191.86,161.8332557]
[1753701989028,0.86,191.87,191.86,178.76010124]
[1753701989309,0.86,191.87,191.86,161.97541727]
[1753701990718,0.86,191.87,191.86,172.88114094]
[1753701990894,0.86,191.87,191.86,178.76010124]
[1753701991504,0.86,191.87,191.86,156.76328343]
[1753701991908,0.86,191.87,191.86,120.46328343]
[1753701992092,0.86,191.87,191.86,156.74328343]
[1753701992594,0.86,191.87,191.86,161.95541727]
[1753701993310,0.86,191.87,191.86,156.74328343]
[1753701997123,0.86,191.87,191.86,161.95541727]
[1753702000220,0.2,191.87,191.86,161.95541727]
[1753702001037,0.2,191.87,191.86,178.74010124]
[1753702004137,0.2,191.87,191.86,178.95010124]
[1753702005434,0.03,191.88,191.86,178.95010124]
[1753702005435,0.03,191.88,191.87,17.06900711]
[1753702005642,0.03,191.88,191.87,23.67915362]
[1753702007124,0.03,191.88,191.87,28.89101581]
[1753702008342,0.03,191.88,191.87,28.68101581]
[1753702009420,1e-08,191.88,191.87,116.9810158]
[1753702009622,1e-08,191.88,191.87,116.45982959]
[1753702010444,1e-08,191.88,191.87,152.45550645]
[1753702010445,0.69000001,191.88,191.87,152.45550645]
[1753702010613,0.69000001,191.88,191.87,152.73982959]
[1753702012237,0.69000001,191.88,191.87,105.3690071]
[1753702012413,0.69000001,191.88,191.87,146.84086929]
[1753702012615,0.69000001,191.88,191.87,152.71982959]
[1753702013443,0.69000001,191.88,191.87,146.84086929]
[1753702013634,0.69000001,191.88,191.87,150.70216156]
[1753702013828,0.69000001,191.88,191.87,150.84432313]
[1753702014354,0.69000001,191.88,191.87,156.72328343]
[1753702016036,0.69000001,191.88,191.87,150.84432313]
[1753702016353,0.69000001,191.88,191.87,156.72328343]
[1753702016531,0.69000001,191.88,191.87,150.84432313]
[1753702020872,0.69000001,191.88,191.87,26.0]
[1753702021428,6.56896031,191.88,191.86,124.55999999]
[1753702021858,0.71,191.87,191.86,124.55999999]
[1753702022739,0.71,191.87,191.86,88.29999999]
[1753702024254,6.5889603,191.87,191.85,124.55999999]
[1753702024658,6.5889603,191.86,191.81,88.29999999]
[1753702024840,5.21192803,191.87,191.82,36.28]
[1753702024841,5.8789603,191.84,191.82,36.28]
[1753702025041,0.71,191.83,191.82,36.28]
[1753702029867,0.71,191.83,191.82,36.34]
[1753702030178,0.71,191.83,191.82,124.63999999]
[1753702033303,0.71,191.85,191.82,129.85322071]
[1753702033502,0.71,191.84,191.82,124.63999999]
[1753702034280,0.71,191.83,191.82,124.63999999]
[1753702038506,0.71,191.84,191.82,124.63999999]
[1753702041008,0.71,191.87,191.83,6.16328344]
[1753702041223,0.71,191.87,191.84,36.28]
[1753702041903,0.71,191.87,191.84,124.57999999]
[1753702042108,0.71,191.86,191.84,124.57999999]
[1753702042407,6.5889603,191.85,191.84,88.29999999]
[1753702042610,5.8789603,191.85,191.84,88.29999999]
[1753702042827,6.5889603,191.85,191.84,88.29999999]
[1753702044906,0.71,191.85,191.84,88.29999999]
[1753702045222,6.5889603,191.85,191.84,88.29999999]
[1753702047914,6.5889603,191.85,191.82,93.57320847]
[1753702048112,0.71,191.84,191.82,93.57320847]
[1753702048318,5.8789603,191.85,191.82,93.57320847]
[1753702048502,0.71,191.83,191.82,93.57320847]
[1753702049694,0.71,191.83,191.82,88.35999999]
[1753702050520,0.71,191.84,191.82,88.35999999]
[1753702052725,0.71,191.83,191.82,88.35999999]
[1753702059711,4.472018,191.84,191.82,88.35999999]
[1753702061142,3.762018,191.84,191.82,88.35999999]
[1753702061441,0.71,191.83,191.82,88.35999999]
[1753702061814,3.762018,191.84,191.82,88.35999999]
[1753702062018,4.472018,191.84,191.82,88.35999999]
[1753702063618,0.71,191.84,191.82,93.57318412]
[1753702063846,4.472018,191.85,191.82,93.57318412]
[1753702065443,3.762018,191.85,191.82,93.57318412]
[1753702065620,0.71,191.84,191.82,93.57318412]
[1753702066042,3.762018,191.86,191.82,93.57318412]
[1753702066231,0.71,191.86,191.83,36.28]
[1753702068139,0.71,191.86,191.83,41.49271732]
[1753702070850,4.47201801,191.88,191.83,41.70271732]
[1753702071067,0.71,191.87,191.83,45.46473532]
[1753702071521,0.71,191.87,191.83,133.76473531]
[1753702073246,0.71,191.87,191.83,133.55473531]
[1753702073450,3.76201801,191.88,191.83,129.85271731]
[1753702073661,0.71,191.86,191.83,129.85271731]
[1753702074951,3.76201801,191.88,191.83,129.85271731]
[1753702075261,0.71,191.87,191.83,130.06271731]
[1753702077572,0.71,191.86,191.83,129.85271731]
[1753702079774,3.76201801,191.88,191.83,129.85271731]
[1753702079985,0.71,191.87,191.83,129.85271731]
[1753702080368,4.472018,191.87,191.84,36.26]
[1753702080551,0.71,191.86,191.84,36.26]
[1753702080753,0.67,191.85,191.83,88.35999999]
[1753702080977,3.762018,191.84,191.83,88.35999999]
[1753702081395,4.432018,191.84,191.83,0.06]
[1753702081857,34.34299074,191.84,191.82,0.06]
[1753702082055,4.432018,191.83,191.8,0.06]
[1753702082254,3.762018,191.81,191.8,0.06]
[1753702082450,8.97551051,191.81,191.8,0.06]
[1753702082869,11.76566045,191.81,191.8,0.06]
[1753702084979,0.67,191.81,191.8,0.06]
[1753702085183,5.88216794,191.82,191.8,0.06]
[1753702085688,6.55216794,191.83,191.8,0.06]
[1753702085988,0.67,191.83,191.8,0.06]
[1753702086294,0.67,191.83,191.8,88.35999999]
[1753702087490,0.67,191.85,191.8,94.57216793]
[1753702087683,0.67,191.87,191.83,5.88216794]
[1753702087879,3.90278857,191.86,191.83,6.21216794]
[1753702088068,6.55216794,191.87,191.82,6.16649108]
[1753702088271,4.5729162,191.86,191.82,6.16649108]
[1753702088489,6.55216794,191.86,191.81,31.21324752]
[1753702088691,5.88216794,191.83,191.81,26.0]
[1753702088984,6.55216794,191.82,191.8,0.06]
[1753702089188,9.78562019,191.81,191.8,0.06]
[1753702089387,9.78562019,191.81,191.79,0.06]
[1753702089388,16.33778813,191.81,191.78,0.06]
[1753702089583,16.33778813,191.81,191.76,0.06]
[1753702089584,5.88216794,191.77,191.76,0.06]
[1753702089772,9.7861957,191.77,191.75,0.06]
[1753702089969,10.45688314,191.76,191.75,0.06]
[1753702090169,15.67173503,191.76,191.75,0.06]
[1753702090387,15.67173503,191.76,191.72,0.06]
[1753702090388,23.59893503,191.76,191.72,0.06]
[1753702090592,10.45688314,191.75,191.72,0.06]
[1753702090984,5.88216794,191.73,191.72,0.06]
[1753702091373,6.55216794,191.73,191.72,0.06]
[1753702091791,5.88216794,191.75,191.72,0.06]
[1753702092195,23.00288397,191.72,191.68,0.06]
[1753702092500,5.88216794,191.69,191.68,0.06]
[1753702092795,9.77828907,191.69,191.64,0.06]
[1753702093001,5.88216794,191.66,191.64,0.06]
[1753702093202,7.49266794,191.66,191.64,0.06]
[1753702093376,5.88216794,191.65,191.64,0.06]
[1753702093696,5.88216794,191.65,191.63,0.06]
[1753702093697,10.44333543,191.65,191.63,0.06]
[1753702093890,10.44359145,191.64,191.63,0.06]
[1753702094210,28.55496921,191.64,191.63,0.06]
[1753702094396,28.55496921,191.64,191.61,0.06]
[1753702094397,0.14216157,191.62,191.61,0.06]
[1753702094579,16.78468397,191.61,191.49,5.22217565]
[1753702094788,5.88216794,191.58,191.51,5.22164831]
[1753702094994,5.88216794,191.58,191.48,0.72]
[1753702095183,5.88216794,191.58,191.47,11.10491824]
[1753702095184,5.88216794,191.51,191.47,11.10491824]
[1753702095500,5.88216794,191.51,191.47,5.9427503]
[1753702095708,5.88216794,191.48,191.41,0.72]
[1753702095998,5.88216794,191.48,191.37,5.22547943]
[1753702095999,5.88216794,191.44,191.39,5.88216794]
[1753702096181,6.3336,191.51,191.41,5.22438744]
[1753702096382,5.88216794,191.44,191.38,0.72]
[1753702096594,5.88216794,191.43,191.38,6.60216794]
[1753702096780,8.65981315,191.43,191.38,9.37981315]
[1753702096978,8.65981315,191.42,191.39,0.72]
[1753702097203,8.65981315,191.4,191.36,5.2257525]
[1753702097500,8.65981315,191.4,191.35,8.65981315]
[1753702097501,8.65981315,191.39,191.35,8.65981315]
[1753702097675,0.67,191.4,191.36,8.65981315]
[1753702097877,8.65981315,191.41,191.36,8.65981315]
[1753702098089,36.62,191.44,191.3,11.0]
[1753702098090,13.88551126,191.37,191.3,11.0]
[1753702098286,10.0,191.33,191.3,6.2768]
[1753702098511,26.0,191.31,191.3,6.2768]
[1753702098814,75.3534741,191.31,191.3,6.2768]
[1753702099019,8.65981315,191.28,191.27,0.7716333]
[1753702099233,66.17366095,191.28,191.27,0.7716333]
[1753702099439,16.78468397,191.27,191.17,0.72]
[1753702099727,41.34916383,191.26,191.18,8.65981315]
[1753702099927,16.78468397,191.3,191.19,0.72]
[1753702100136,8.65981315,191.24,191.19,13.890088]
[1753702100293,0.58,191.29,191.2,0.72]
[1753702100504,13.18239988,191.33,191.2,0.72]
[1753702100505,3.82346882,191.28,191.2,0.72]
[1753702100700,21.84221303,191.33,191.27,26.0]
[1753702100928,12.48274142,191.32,191.27,8.65981315]
[1753702101105,13.18239988,191.33,191.31,8.65981315]
[1753702101310,13.18239988,191.33,191.28,0.72]
[1753702101311,12.47454034,191.32,191.28,0.72]
[1753702101538,12.47454034,191.32,191.25,0.72]
[1753702101539,3.81472719,191.31,191.25,0.72]
[1753702101829,3.81472719,191.3,191.26,0.72]
[1753702102002,50.32239988,191.33,191.26,0.72]
[1753702102003,58.98221303,191.33,191.27,8.65981315]
[1753702102205,3.80845653,191.32,191.29,8.65981315]
[1753702102419,13.18239988,191.33,191.3,8.65981315]
[1753702102635,13.18239988,191.33,191.3,0.72]
[1753702102929,13.18239988,191.33,191.29,26.0]
[1753702103132,13.18239988,191.33,191.3,9.37981315]
[1753702103325,13.18239988,191.33,191.3,8.65981315]
[1753702103528,13.18239988,191.33,191.32,8.94413629]
[1753702103712,37.28,191.41,191.32,9.66413629]
[1753702103915,8.65981315,191.39,191.33,9.37981315]
[1753702104117,8.65981315,191.38,191.33,9.37981315]
[1753702104313,8.65981315,191.38,191.34,0.72]
[1753702104509,8.65981315,191.39,191.35,0.72]
[1753702105112,2.7268833,191.46,191.37,34.65981315]
[1753702105316,8.65981315,191.43,191.37,35.37981315]
[1753702105564,8.65981315,191.42,191.37,35.37981315]
[1753702105735,8.65981315,191.42,191.37,26.72]
[1753702105923,8.65981315,191.42,191.37,34.65981315]
[1753702106129,8.65981315,191.43,191.38,0.72]
[1753702106329,8.65981315,191.41,191.38,0.72]
[1753702106638,5.80387669,191.43,191.36,8.65981315]
[1753702106944,8.65981315,191.41,191.35,9.37981315]
[1753702107336,8.65981315,191.4,191.35,0.72]
[1753702107561,8.65981315,191.41,191.35,8.65981315]
[1753702107730,8.65981315,191.41,191.36,0.72]
[1753702107930,8.65981315,191.41,191.37,0.72]
[1753702108438,8.65981315,191.43,191.38,0.72]
[1753702108765,8.65981315,191.44,191.39,0.72]
[1753702108933,37.3,191.45,191.35,5.22601634]
[1753702108934,51.18316267,191.45,191.4,0.72]
[1753702109139,42.52334952,191.45,191.38,26.0]
[1753702109337,8.65981315,191.42,191.37,0.72]
[1753702109537,8.65981315,191.43,191.37,9.37981315]
[1753702111560,8.65981315,191.43,191.37,0.72]
[1753702111762,42.52334952,191.45,191.36,8.65981315]
[1753702111763,8.65981315,191.44,191.38,0.67]
[1753702111943,45.95981315,191.45,191.39,8.65981315]
[1753702112263,8.65981315,191.43,191.38,9.32981315]
[1753702112458,8.65981315,191.43,191.38,8.65981315]
[1753702112763,8.65981315,191.43,191.39,0.67]
[1753702113646,42.5233154,191.45,191.39,0.67]
[1753702113847,8.65981315,191.43,191.39,0.67]
[1753702114173,8.65981315,191.43,191.38,13.88499218]
[1753702114174,8.65981315,191.43,191.38,8.65981315]
[1753702114345,8.65981315,191.41,191.37,0.67]
[1753702115560,8.65981315,191.41,191.36,8.65981315]
[1753702115770,5.22413618,191.42,191.34,0.67]
[1753702115771,8.65981315,191.38,191.34,0.67]
[1753702115949,8.65981315,191.38,191.33,8.65981315]
[1753702116146,8.65981315,191.38,191.33,9.32981315]
[1753702116851,8.65981315,191.37,191.33,0.67]
[1753702118775,8.65981315,191.36,191.31,14.55688887]
[1753702118989,8.65981315,191.36,191.31,40.55688887]
[1753702119156,8.65981315,191.36,191.32,0.67]
[1753702119772,8.65981315,191.36,191.32,5.89679644]
[1753702120087,8.65981315,191.36,191.33,0.67]
[1753702120250,8.65981315,191.37,191.33,0.67]
[1753702120660,8.65981315,191.38,191.33,0.67]
[1753702120859,8.65981315,191.38,191.32,5.22679644]
[1753702121076,37.78,191.39,191.32,5.22679644]
[1753702121077,45.85981315,191.39,191.32,5.22679644]
[1753702121269,0.58,191.4,191.32,5.22679644]
[1753702121270,8.65981315,191.38,191.33,9.32981315]
[1753702121475,8.65981315,191.38,191.34,0.67]
[1753702121678,8.65981315,191.39,191.34,0.67]
[1753702121987,9.23981315,191.39,191.33,8.65981315]
[1753702122191,0.67,191.38,191.33,8.65981315]
[1753702122390,8.65981315,191.4,191.34,8.65981315]
[1753702122688,8.65981315,191.4,191.28,0.28432314]
[1753702122689,8.65981315,191.39,191.28,0.28432314]
[1753702122898,8.65981315,191.39,191.34,8.65981315]
[1753702123096,0.67,191.4,191.35,8.65981315]
[1753702123891,37.2,191.41,191.37,8.65981315]
[1753702124070,37.2,191.41,191.38,0.67]
[1753702124385,37.2,191.41,191.38,9.32981315]
[1753702124588,45.85981315,191.45,191.39,9.32981315]
[1753702124795,37.2,191.45,191.41,8.65981315]
[1753702125093,37.2,191.45,191.4,0.67]
[1753702125094,37.2,191.45,191.42,9.32981315]
[1753702125297,37.2,191.45,191.39,26.0]
[1753702125476,37.87,191.45,191.41,8.65981315]
[1753702125673,37.2,191.45,191.4,34.65981315]
[1753702125881,37.87,191.45,191.4,34.65981315]
[1753702126674,37.87,191.45,191.4,35.32981315]
[1753702126872,51.08317241,191.45,191.39,8.65981315]
[1753702127078,8.65981315,191.41,191.36,9.32981315]
[1753702127283,0.67,191.4,191.36,5.8954916]
[1753702127466,0.67,191.4,191.36,14.55530475]
[1753702129182,5.22455671,191.41,191.35,36.23061315]
[1753702129388,5.22455671,191.41,191.35,1.5708]
[1753702129389,9.32981315,191.39,191.35,1.5708]
[1753702129599,0.67,191.39,191.35,1.5708]
[1753702130198,0.67,191.38,191.34,9.32981315]
[1753702131500,13.88455,191.4,191.34,14.55604566]
[1753702131700,14.55455,191.4,191.34,14.55604566]
[1753702132104,13.88455,191.4,191.34,8.65981315]
[1753702132289,0.67,191.39,191.34,8.65981315]
[1753702132598,0.67,191.38,191.34,8.65981315]
[1753702132989,0.67,191.37,191.32,31.89678269]
[1753702133298,0.67,191.37,191.33,9.32981315]
[1753702133495,13.88484611,191.39,191.33,9.32981315]
[1753702133685,0.67,191.39,191.34,8.65981315]
[1753702133886,0.67,191.39,191.35,0.67]
[1753702134096,9.32981315,191.39,191.35,0.67]
[1753702134503,8.65981315,191.41,191.34,8.65981315]
[1753702134690,8.65981315,191.4,191.36,0.67]
[1753702135006,37.81,191.42,191.37,0.67]
[1753702135181,8.65981315,191.41,191.37,0.67]
[1753702135383,14.55435118,191.41,191.37,0.67]
[1753702136420,8.65981315,191.4,191.37,0.67]
[1753702136922,8.65981315,191.4,191.33,5.22657189]
[1753702137123,0.67,191.4,191.34,0.67]
[1753702137425,9.32981315,191.4,191.34,0.67]
[1753702137726,5.22414623,191.42,191.34,0.67]
[1753702137903,50.98395938,191.42,191.34,0.67]
[1753702138426,37.1,191.42,191.38,8.65981315]
[1753702138725,37.1,191.42,191.4,8.65981315]
[1753702139120,14.55315433,191.45,191.4,8.65981315]
[1753702139334,0.67,191.44,191.4,8.65981315]
[1753702139520,0.67,191.44,191.41,8.65981315]
[1753702139700,0.67,191.44,191.4,9.32981315]
[1753702140426,0.67,191.44,191.4,8.65981315]
[1753702140609,0.67,191.44,191.4,9.32981315]
[1753702141132,8.65981315,191.42,191.37,8.65981315]
[1753702141314,0.68,191.41,191.38,8.65981315]
[1753702141833,0.68,191.41,191.35,26.0]
[1753702141834,0.68,191.43,191.4,8.65981315]
[1753702142027,5.93334118,191.45,191.4,0.69]
[1753702142230,0.68,191.44,191.38,0.69]
[1753702142431,0.68,191.44,191.4,8.65981315]
[1753702142637,0.68,191.44,191.4,9.34981315]
[1753702143922,5.25335362,191.45,191.39,5.22485029]
[1753702144122,0.68,191.43,191.39,13.88466344]
[1753702144625,0.68,191.42,191.37,34.65981315]
[1753702144829,0.68,191.42,191.37,9.34981315]
[1753702145536,5.90413656,191.42,191.37,9.34981315]
[1753702145737,8.65981315,191.4,191.36,26.0]
[1753702146039,0.68,191.39,191.36,26.0]
[1753702146654,9.33981315,191.41,191.36,31.91566663]
[1753702146822,6.58577592,191.41,191.36,31.91566663]
[1753702147248,0.68,191.41,191.36,37.82144255]
[1753702147846,5.90443464,191.41,191.36,26.0]
[1753702148022,5.90443464,191.41,191.37,0.69]
[1753702148645,5.90577592,191.43,191.38,0.69]
[1753702148848,9.33942066,191.44,191.38,9.34942066]
[1753702149048,0.68,191.43,191.38,9.34942066]
[1753702149428,9.33942066,191.43,191.39,0.69]
[1753702149629,9.33942066,191.42,191.31,5.91711828]
[1753702149828,13.884334,191.4,191.34,34.65942066]
[1753702150037,0.68,191.39,191.34,34.65942066]
[1753702150248,0.68,191.38,191.33,0.69]
[1753702150427,0.68,191.37,191.33,9.34942066]
[1753702151134,9.33942066,191.39,191.33,9.34942066]
[1753702151353,5.22520639,191.38,191.33,9.34942066]
[1753702151534,5.90520639,191.38,191.33,9.34942066]
[1753702152053,5.90520639,191.38,191.34,9.34942066]
[1753702152431,5.90520639,191.38,191.33,8.65942066]
[1753702152769,5.90520639,191.38,191.34,0.69]
[1753702153059,8.65942066,191.36,191.3,10.86792066]
[1753702153223,45.69942066,191.36,191.3,10.86792066]
[1753702153428,5.90622622,191.35,191.3,10.86792066]
[1753702154552,5.90622622,191.35,191.31,8.65942066]
[1753702154848,5.90622622,191.35,191.31,9.34942066]
[1753702155076,37.04,191.36,191.32,0.69]
[1753702155232,37.72,191.36,191.3,6.74581381]
[1753702155436,0.68,191.35,191.31,8.65942066]
[1753702155630,42.2657792,191.36,191.3,1.5185]
[1753702155830,0.68,191.35,191.31,8.65942066]
[1753702156236,0.68,191.35,191.3,1.5185]
[1753702156237,0.68,191.35,191.3,10.17792066]
[1753702156436,50.92519986,191.36,191.3,10.86792066]
[1753702156655,5.22611541,191.35,191.3,10.17792066]
[1753702156863,51.6052575,191.36,191.31,0.69]
[1753702157461,51.6052575,191.36,191.3,15.40520995]
[1753702157652,0.68,191.35,191.3,15.40520995]
[1753702157866,50.9252575,191.36,191.3,2.2085]
[1753702158036,0.68,191.34,191.3,2.2085]
[1753702158657,5.90631645,191.34,191.3,1.5185]
[1753702160180,0.68,191.33,191.29,8.65942066]
[1753702160547,5.2260256,191.35,191.29,9.34942066]
[1753702160871,37.0,191.34,191.3,0.75]
[1753702161065,37.03,191.34,191.3,0.75]
[1753702161273,37.71,191.34,191.3,0.75]
[1753702163047,37.03,191.34,191.3,0.06]
[1753702163252,37.03,191.34,191.31,0.69]
[1753702164275,37.71,191.34,191.3,8.71942066]
[1753702164454,37.71,191.34,191.3,0.06]
[1753702164656,37.71,191.34,191.3,0.75]
[1753702165062,0.68,191.33,191.3,0.06]
[1753702165472,50.91580419,191.34,191.3,0.06]
[1753702165473,0.68,191.32,191.3,0.06]
[1753702165649,50.91580419,191.34,191.3,0.06]
[1753702165849,51.59580419,191.34,191.3,0.06]
[1753702166866,0.68,191.33,191.3,0.06]
[1753702167980,0.68,191.32,191.3,0.06]
[1753702168151,9.33942066,191.32,191.3,0.06]
[1753702168354,0.68,191.31,191.3,0.06]
[1753702169397,6.59133684,191.31,191.3,0.06]
[1753702169880,11.81845512,191.31,191.3,0.06]
[1753702171874,5.90711828,191.31,191.3,0.06]
[1753702172356,42.84711828,191.31,191.3,0.06]
[1753702173189,48.75845512,191.31,191.3,0.06]
[1753702175502,42.84711828,191.31,191.3,0.06]
[1753702176931,48.75845512,191.31,191.3,0.06]
[1753702177297,42.84711828,191.31,191.3,0.06]
[1753702178110,48.75845512,191.31,191.3,0.06]
[1753702182825,48.78845512,191.31,191.3,0.06]
[1753702183326,48.10845512,191.31,191.3,0.06]
[1753702185232,48.82845512,191.31,191.3,0.06]
[1753702187323,42.91711828,191.31,191.3,0.06]
[1753702187506,48.10845512,191.31,191.3,0.06]
[1753702188533,48.82845512,191.31,191.3,0.06]
[1753702189227,65.61313909,191.31,191.3,0.06]
[1753702189812,69.51465581,191.31,191.3,0.06]
[1753702190214,52.72997184,191.31,191.3,0.06]
[1753702192233,46.818635,191.31,191.3,0.06]
[1753702192443,3.93151672,191.31,191.3,0.06]
[1753702192620,0.03,191.31,191.3,0.74]
[1753702192816,36.89,191.31,191.3,0.74]
[1753702193012,36.89,191.31,191.3,0.06]
[1753702193615,36.89,191.31,191.3,0.74]
[1753702195818,36.89,191.31,191.3,0.06]
[1753702196064,48.74845512,191.31,191.3,0.06]
[1753702196637,48.02845512,191.31,191.3,0.06]
[1753702196844,51.93360198,191.31,191.3,0.06]
[1753702198346,46.02226514,191.31,191.3,0.06]
[1753702198652,52.65360198,191.31,191.3,0.06]
[1753702200220,16.78468397,191.3,191.27,0.06]
[1753702200424,5.91133684,191.28,191.27,0.06]
[1753702200624,9.8164837,191.28,191.27,0.06]
[1753702200820,10.5264837,191.28,191.27,0.06]
[1753702201580,40.74514686,191.28,191.27,0.73]
[1753702202133,3.90514686,191.28,191.27,6.64133684]
[1753702202445,36.89,191.31,191.27,11.86954826]